bitfinex/quotes_ETHUSD_20241231
["timestamp","ask_amount","ask_price","bid_price","bid_amount"]
[1735619592534,1.25591771,3350.8,3350.4,2.98463]
[1735619594436,1.25591771,3350.7,3350.4,2.98463]
[1735619595839,1.25591771,3350.6,3350.4,2.98463]
[1735619598795,1.25591771,3350.6,3350.5,2.98462]
[1735619599801,1.25591771,3350.7,3350.5,2.98462]
[1735619600341,1.25591771,3350.7,3350.6,2.98454]
[1735619601138,1.25591771,3350.7,3350.4,6.5]
[1735619601344,1.25591771,3350.7,3350.4,9.4847]
[1735619601638,1.25591771,3350.7,3350.4,2.9847]
[1735619603044,0.2698,3350.5,3350.2,9.48487]
[1735619603735,1.25591771,3350.4,3350.2,2.98487]
[1735619609327,1.25591771,3350.4,3350.0,7.3207]
[1735619609528,1.25591771,3350.4,3350.3,2.9848]
[1735619609767,1.25591771,3350.4,3350.3,5.058581]
[1735619610673,1.25591771,3350.4,3350.3,11.558581]
[1735619611076,1.25591771,3350.7,3350.5,2.98462]
[1735619614448,1.25591771,3350.7,3350.6,2.98454]
[1735619614979,1.25591771,3350.7,3350.6,4.842474]
[1735619615640,1.25591771,3350.7,3350.6,11.342474]
[1735619616176,2.51183543,3351.1,3350.6,11.342474]
[1735619616177,1.25591771,3351.1,3350.6,11.342474]
[1735619616376,1.25591771,3351.1,3350.9,2.98422]
[1735619616978,1.25591771,3351.1,3350.7,0.02984087]
[1735619617176,1.25591771,3351.1,3350.9,2.98418]
[1735619617351,1.25591771,3351.1,3351.0,2.98418]
[1735619619285,1.25591771,3351.1,3351.0,3.81098]
[1735619620582,1.25591771,3351.1,3351.0,10.31098]
[1735619621145,1.25591771,3351.6,3351.1,0.7513]
[1735619621341,1.25591771,3351.6,3351.5,2.98373]
[1735619622578,1.25591771,3351.8,3351.5,2.98373]
[1735619624477,1.25591771,3351.8,3351.6,2.98364]
[1735619625282,3.2698,3352.1,3351.6,2.98364]
[1735619625283,1.25591771,3351.9,3351.6,2.98364]
[1735619626480,1.25591771,3352.0,3351.6,2.98364]
[1735619629407,1.25591771,3352.0,3351.9,2.98338]
[1735619629602,1.25591771,3352.0,3351.9,3.73468]
[1735619630141,1.25591771,3352.4,3352.3,2.98302]
[1735619630957,1.25591771,3352.4,3352.3,3.73432]
[1735619631745,1.25591771,3353.1,3352.3,3.73432]
[1735619632008,1.25591771,3353.1,3352.6,2.98267]
[1735619632221,1.25591771,3353.1,3352.4,0.373432]
[1735619632381,1.25591771,3353.1,3352.8,2.98257]
[1735619633223,0.2698,3353.2,3352.8,2.98257]
[1735619634016,0.2698,3353.2,3352.4,6.873432]
[1735619634325,0.2698,3353.2,3352.6,2.98274]
[1735619634680,0.2698,3353.2,3352.7,2.98266]
[1735619635522,0.2698,3353.2,3352.8,2.98257]
[1735619635677,0.2698,3353.2,3352.9,2.98246]
[1735619636077,0.2698,3353.5,3352.8,2.98258]
[1735619636314,0.2698,3353.5,3352.8,0.7599]
[1735619636622,0.2698,3353.5,3353.0,2.98237]
[1735619637322,0.2698,3353.5,3353.0,4.10515792]
[1735619639325,0.2698,3353.5,3353.0,1.12278792]
[1735619639483,0.2698,3353.5,3353.1,2.9823]
[1735619639683,0.2698,3353.5,3353.0,1.12278792]
[1735619642610,0.2698,3353.5,3352.8,6.5]
[1735619645734,0.2698,3353.5,3352.7,6.5]
[1735619646318,0.2698,3353.5,3352.7,9.48266]
[1735619646515,0.2698,3353.5,3352.7,2.98266]
[1735619646710,0.2698,3353.5,3352.8,1.024256]
[1735619647441,0.2698,3353.5,3353.0,2.98239]
[1735619648425,0.2698,3353.5,3352.8,7.524256]
[1735619648735,0.2698,3353.5,3352.8,1.024256]
[1735619649041,0.2698,3353.5,3352.6,3.7599]
[1735619649238,0.2698,3353.5,3352.6,3.0]
[1735619649538,0.2698,3353.5,3352.5,3.0]
[1735619650252,0.2698,3353.5,3352.6,2.98274]
[1735619651437,1.799,3353.4,3352.6,2.98274]
[1735619651639,0.2698,3353.6,3352.7,1.248274]
[1735619651839,2.9819,3353.6,3352.5,3.0]
[1735619652046,0.2698,3353.5,3352.5,3.0]
[1735619652551,0.2698,3353.5,3352.5,5.9828]
[1735619655547,0.2698,3353.5,3352.6,2.98273]
[1735619656605,0.2698,3353.5,3352.6,9.48273]
[1735619656806,0.2698,3353.5,3352.6,10.81062554]
[1735619659649,0.2698,3353.5,3352.7,2.98265]
[1735619661528,1.799,3353.4,3352.7,2.98265]
[1735619661701,0.2698,3353.4,3352.7,2.98265]
[1735619661908,0.2698,3353.4,3352.6,1.32789554]
[1735619662223,0.2698,3353.4,3352.5,9.48283]
[1735619662601,0.2698,3353.4,3352.3,0.7664]
[1735619662602,0.2698,3353.4,3352.3,3.74941]
[1735619662806,0.2698,3353.0,3352.2,6.5]
[1735619663650,0.2698,3353.0,3352.1,2.98319]
[1735619663945,0.2698,3352.8,3351.8,6.5]
[1735619664121,0.2698,3352.7,3351.8,6.5]
[1735619664656,2.71827438,3352.8,3351.7,3.931914]
[1735619664657,0.2698,3352.4,3351.7,3.931914]
[1735619664953,0.2698,3352.4,3351.7,2.98355]
[1735619665558,0.2698,3352.4,3351.5,2.98373]
[1735619665759,0.2698,3352.3,3351.5,2.98373]
[1735619667545,1.52571771,3352.3,3351.5,2.98373]
[1735619668854,1.52571771,3352.3,3351.2,6.5]
[1735619669020,1.52571771,3352.3,3351.6,2.98361]
[1735619669669,0.2698,3352.3,3351.7,2.98353]
[1735619669818,0.2698,3352.3,3351.8,2.98345]
[1735619670759,0.2698,3352.3,3351.5,9.48366]
[1735619670961,0.2698,3352.3,3351.5,10.507632]
[1735619671454,0.2698,3352.3,3351.6,2.98362]
[1735619672663,0.2698,3352.3,3351.2,6.5]
[1735619672826,0.2698,3352.3,3351.3,3.70948]
[1735619673225,0.2698,3352.3,3351.3,0.72559]
[1735619673431,0.2698,3352.3,3351.4,2.98381]
[1735619673669,1.25591771,3352.2,3351.4,2.98381]
[1735619673870,0.2698,3352.1,3351.4,9.48381]
[1735619674042,0.2698,3352.1,3351.4,10.58034]
[1735619675130,0.2698,3352.1,3351.5,2.98369]
[1735619677546,0.2698,3352.1,3351.4,6.5]
[1735619677748,0.2698,3352.1,3351.1,7.2559]
[1735619677949,0.2698,3352.1,3351.3,2.98391]
[1735619678160,0.2698,3352.0,3351.3,2.98391]
[1735619679233,0.2698,3352.0,3351.2,3.0]
[1735619679433,0.2698,3352.0,3351.3,2.98383]
[1735619679975,1.25591771,3352.2,3351.8,2.98346]
[1735619680159,1.25591771,3352.2,3351.6,0.8045]
[1735619680337,1.25591771,3352.2,3351.7,3.36399]
[1735619680536,0.2698,3352.1,3351.7,2.98354]
[1735619681579,0.2698,3352.1,3351.4,6.5]
[1735619681769,0.2698,3352.1,3351.6,2.98363]
[1735619682483,0.57977715,3352.1,3351.4,9.48381]
[1735619682646,0.57977715,3352.1,3351.4,2.98381]
[1735619685477,0.2698,3352.0,3351.4,2.98381]
[1735619690117,0.72237177,3352.0,3351.1,10.28853]
[1735619690255,0.2698,3351.9,3351.1,6.5]
[1735619690604,0.2698,3351.9,3350.8,0.8045]
[1735619691690,0.2698,3351.9,3351.0,2.98417]
[1735619693398,0.2698,3351.9,3351.1,2.98409]
[1735619693554,0.2698,3351.8,3351.1,2.98409]
[1735619695613,0.2698,3351.8,3350.9,2.98426]
[1735619695842,0.2698,3351.8,3351.4,2.98381]
[1735619698688,0.2698,3351.8,3351.2,2.98398]
[1735619700985,0.2698,3351.8,3350.9,2.98418]
[1735619701299,0.2698,3351.7,3350.9,2.98418]
[1735619701772,0.2698,3351.7,3350.7,0.7907]
[1735619702187,0.2698,3351.7,3350.6,0.7907]
[1735619702398,0.2698,3351.7,3351.2,2.98392]
[1735619703195,1.25591771,3352.0,3351.1,0.7907]
[1735619703400,1.25591771,3352.0,3351.9,2.98338]
[1735619703698,1.25591771,3352.0,3351.9,3.580077]
[1735619704201,1.25591771,3352.4,3352.3,2.98302]
[1735619704363,1.25591771,3352.4,3352.3,3.77372]
[1735619705200,1.25591771,3352.4,3352.3,2.98302]
[1735619705496,0.30997715,3352.7,3352.4,2.98293]
[1735619705654,0.30997715,3352.7,3352.0,6.5]
[1735619705856,0.30997715,3352.7,3352.0,7.2887397]
[1735619706705,0.30997715,3352.7,3352.5,2.98284]
[1735619707192,1.25591771,3352.8,3352.5,2.98284]
[1735619707702,1.25591771,3352.8,3352.3,2.98301]
[1735619707903,1.52571771,3353.0,3352.3,2.98301]
[1735619708159,0.2698,3352.7,3352.2,6.5]
[1735619708335,0.30997715,3352.6,3352.2,6.5]
[1735619708516,0.30997715,3352.6,3352.2,9.4831]
[1735619708714,0.2698,3352.7,3352.2,2.9831]
[1735619709122,1.52571771,3352.7,3352.2,2.9831]
[1735619709325,1.52571771,3352.7,3351.9,2.98329]
[1735619709326,2.22861329,3352.7,3351.9,2.98329]
[1735619709518,3.57977715,3352.6,3351.8,6.5]
[1735619709719,0.2698,3352.5,3351.7,2.98355]
[1735619709966,0.30997715,3352.4,3351.7,2.98355]
[1735619710451,0.2698,3352.3,3351.4,9.48373]
[1735619710621,0.57977715,3352.2,3351.4,2.98373]
[1735619710821,0.2698,3352.1,3351.4,2.98373]
[1735619711412,1.25591771,3352.0,3351.4,2.98373]
[1735619711953,1.25591771,3352.0,3351.5,2.98373]
[1735619712878,2.15367657,3352.1,3351.5,2.98373]
[1735619712879,1.25591771,3351.9,3351.5,2.98373]
[1735619713783,1.25591771,3352.0,3351.5,2.98373]
[1735619718064,1.52571771,3352.1,3351.5,2.98373]
[1735619720259,1.25591771,3352.0,3351.5,2.98373]
[1735619720461,1.59687714,3352.0,3351.5,2.98373]
[1735619721646,1.25591771,3352.0,3351.5,2.98373]
[1735619723488,1.25591771,3352.0,3351.7,2.98348]
[1735619724387,0.2698,3352.1,3351.7,2.98348]
[1735619727599,1.25591771,3352.2,3351.5,7.3028]
[1735619727900,1.25591771,3352.2,3351.9,2.98329]
[1735619730036,2.15367657,3352.4,3351.9,2.98329]
[1735619730037,1.52571771,3352.4,3351.9,2.98329]
[1735619733932,1.25591771,3352.4,3351.8,6.5]
[1735619734119,1.25591771,3352.4,3352.3,3.76012]
[1735619734324,1.25591771,3352.4,3352.3,4.136132]
[1735619734632,1.25591771,3352.4,3352.3,10.636132]
[1735619735134,1.25591771,3353.0,3352.8,2.98258]
[1735619735330,1.25591771,3353.0,3352.8,0.298258]
[1735619735517,1.25591771,3353.0,3352.9,2.98249]
[1735619735718,1.25591771,3353.0,3352.4,2.98288]
[1735619735923,1.25591771,3353.0,3352.7,2.98258]
[1735619736125,1.25591771,3353.0,3352.9,2.98249]
[1735619736697,1.25591771,3353.3,3352.9,2.98248]
[1735619737012,1.25591771,3353.3,3352.8,0.7771]
[1735619737213,1.25591771,3353.3,3353.0,2.98239]
[1735619738158,0.2698,3353.4,3353.0,2.98239]
[1735619740020,0.2698,3353.4,3352.9,6.5]
[1735619740535,0.2698,3353.4,3352.8,4.785639]
[1735619741261,0.2698,3353.4,3352.9,1.1285639]
[1735619741570,0.2698,3353.4,3353.0,2.98239]
[1735619742241,0.2698,3353.4,3352.9,1.1285639]
[1735619742874,0.2698,3353.4,3352.9,4.1110339]
[1735619743033,0.2698,3353.4,3353.0,2.98238]
[1735619743234,1.25591771,3353.6,3353.1,2.9823]
[1735619744370,4.52571771,3353.7,3353.1,2.9823]
[1735619744731,4.52571771,3353.7,3353.0,0.48880439]
[1735619744927,1.52571771,3353.7,3353.0,3.47117439]
[1735619745167,1.25591771,3353.7,3353.2,3.76852]
[1735619745327,1.25591771,3353.7,3353.2,0.7863]
[1735619745532,1.25591771,3353.7,3353.5,2.98195]
[1735619746871,2.78163543,3354.1,3353.6,2.98187]
[1735619746872,0.2698,3354.1,3353.6,2.98187]
[1735619747076,0.2698,3354.1,3353.6,3.930057]
[1735619747577,0.2698,3354.1,3353.6,10.430057]
[1735619748078,0.2698,3354.3,3353.6,10.430057]
[1735619748374,0.2698,3354.3,3353.7,0.7863]
[1735619748679,0.2698,3354.3,3353.6,6.5]
[1735619748875,1.20885843,3354.3,3353.6,6.5]
[1735619749335,0.2698,3354.3,3353.6,6.5]
[1735619750573,0.2698,3354.3,3353.5,0.7863]
[1735619753580,0.2698,3354.3,3353.6,9.48179]
[1735619755176,0.2698,3354.3,3353.6,6.5]
[1735619755383,0.2698,3354.3,3353.7,2.98176]
[1735619755673,0.2698,3354.3,3353.8,1.026806]
[1735619756684,0.2698,3354.3,3353.8,7.526806]
[1735619757983,0.2698,3354.7,3353.9,0.7707]
[1735619758188,0.2698,3354.7,3354.2,2.98132]
[1735619758340,1.25591771,3354.8,3354.3,3.279322]
[1735619758545,1.25591771,3354.8,3354.4,0.7707]
[1735619759480,1.25591771,3354.8,3354.6,2.98094]
[1735619759698,2.78163543,3355.2,3354.6,2.98094]
[1735619759699,0.2698,3355.2,3354.6,9.48094]
[1735619759990,0.2698,3355.2,3354.6,10.5359172]
[1735619762550,0.2698,3355.2,3354.6,4.0359172]
[1735619764513,0.2698,3355.2,3354.6,1.0549772]
[1735619770691,0.2698,3355.1,3354.3,6.5]
[1735619771693,0.2698,3355.1,3354.2,3.75983]
[1735619772126,3.2698,3355.1,3354.2,3.75983]
[1735619772338,0.2698,3355.0,3354.0,10.26]
[1735619772497,0.2698,3355.0,3354.1,2.98142]
[1735619772697,0.2698,3355.0,3354.2,2.98131]
[1735619773226,0.2698,3355.0,3353.9,6.5]
[1735619773401,0.2698,3354.8,3353.9,9.48157]
[1735619773602,0.2698,3354.8,3353.9,2.98157]
[1735619774336,0.2698,3354.8,3354.0,2.98147]
[1735619774501,0.2698,3354.8,3354.1,0.4008276]
[1735619775727,0.2698,3354.8,3354.0,2.98147]
[1735619776589,3.0,3354.7,3353.8,7.526806]
[1735619776933,2.71827438,3354.6,3353.8,6.5]
[1735619777085,0.2698,3354.5,3353.8,6.5]
[1735619777626,0.2698,3354.5,3353.6,7.2785]
[1735619777811,0.2698,3354.5,3353.6,6.5]
[1735619778131,0.2698,3354.5,3353.6,7.526045]
[1735619778333,0.2698,3354.5,3353.7,2.98176]
[1735619781707,0.2698,3354.3,3353.7,2.98176]
[1735619782554,0.2698,3354.3,3353.4,3.76046]
[1735619782852,0.2698,3354.3,3353.5,2.9819]
[1735619783054,0.2698,3354.3,3353.6,4.30789]
[1735619785159,0.2698,3354.3,3353.4,3.76054]
[1735619785378,0.2698,3354.2,3353.2,6.5]
[1735619785683,0.2698,3354.2,3353.1,6.5]
[1735619786233,0.2698,3354.2,3353.4,2.98198]
[1735619786439,1.52571771,3354.2,3353.4,3.930178]
[1735619786919,1.25591771,3354.2,3353.4,3.930178]
[1735619787126,0.2698,3354.1,3353.4,2.98198]
[1735619787371,1.52571771,3354.1,3353.4,2.98198]
[1735619787549,0.2698,3354.0,3353.0,3.80747]
[1735619787864,0.2698,3353.9,3353.0,5.98237]
[1735619788164,0.2698,3353.9,3353.0,7.313117]
[1735619789364,1.25591771,3353.9,3353.0,7.313117]
[1735619789561,0.2698,3353.8,3353.0,7.313117]
[1735619791438,1.52571771,3353.8,3353.0,7.313117]
[1735619793064,1.52571771,3353.8,3353.1,2.9823]
[1735619793223,1.52571771,3353.8,3353.1,4.3636047]
[1735619793846,0.2698,3353.8,3353.1,4.3636047]
[1735619799385,0.2698,3353.8,3353.1,2.9823]
[1735619800995,0.2698,3353.8,3352.9,9.48247]
[1735619801209,2.71827438,3353.7,3352.9,9.48247]
[1735619801393,0.2698,3353.6,3352.9,9.48247]
[1735619801707,0.2698,3353.6,3353.0,2.9824]
[1735619803389,0.42439921,3353.6,3352.8,2.98257]
[1735619803586,0.2698,3353.5,3352.8,2.98257]
[1735619804168,0.2698,3353.3,3352.6,2.98273]
[1735619804912,0.2698,3353.0,3352.3,2.98297]
[1735619805413,0.2698,3352.7,3352.2,6.5]
[1735619805611,0.2698,3352.7,3352.1,2.98318]
[1735619806116,0.2698,3352.7,3351.7,7.73649599]
[1735619806317,0.2698,3352.7,3351.7,10.72003599]
[1735619806488,0.2698,3352.7,3351.7,11.0642272]
[1735619806674,0.2698,3352.7,3351.7,4.5642272]
[1735619806898,0.2698,3352.7,3351.7,1.5806872]
[1735619807110,0.2698,3352.7,3351.8,2.98344]
[1735619807985,0.2698,3352.7,3351.9,2.98335]
[1735619810819,0.2698,3352.7,3351.6,9.4836]
[1735619811029,0.2698,3352.6,3351.7,2.98351]
[1735619811885,3.72265021,3352.7,3351.7,2.98351]
[1735619812107,0.2698,3352.5,3351.7,2.98351]
[1735619812298,0.2698,3352.5,3351.5,0.7591]
[1735619812499,0.2698,3352.5,3351.8,2.98342]
[1735619815924,2.71827438,3352.1,3351.6,6.5]
[1735619816131,0.2698,3352.0,3351.6,6.5]
[1735619816687,0.2698,3352.0,3351.5,2.98371]
[1735619816927,0.2698,3352.3,3351.5,2.98371]
[1735619817092,0.2698,3352.3,3351.5,4.014641]
[1735619820434,0.2698,3352.3,3351.8,2.98346]
[1735619820605,0.2698,3352.3,3351.9,2.98336]
[1735619821737,1.25591771,3352.7,3352.1,2.98313]
[1735619821896,1.25591771,3352.7,3352.1,3.281443]
[1735619822092,1.25591771,3352.7,3352.1,2.98313]
[1735619822297,0.2698,3352.6,3351.7,0.8256]
[1735619822498,3.2698,3352.6,3351.9,2.98336]
[1735619822799,0.2698,3352.5,3351.5,10.514661]
[1735619823713,0.2698,3352.5,3351.5,4.014661]
[1735619824020,0.2698,3352.5,3351.6,1.1340261]
[1735619825249,0.2698,3352.5,3351.6,4.1176161]
[1735619825824,0.2698,3352.5,3351.6,1.1340261]
[1735619826023,0.2698,3352.5,3351.8,2.98346]
[1735619827053,0.2698,3352.5,3351.9,2.98334]
[1735619827277,0.2698,3352.5,3351.9,3.80894]
[1735619828216,0.2698,3352.5,3351.9,2.98334]
[1735619829711,0.2698,3352.5,3351.7,11.15510261]
[1735619838892,2.71827438,3352.3,3351.7,6.5]
[1735619839094,0.2698,3352.2,3351.7,6.5]
[1735619839557,0.2698,3352.2,3351.6,6.5]
[1735619839757,0.2698,3352.2,3351.7,0.948381]
[1735619841500,0.2698,3352.2,3351.6,6.5]
[1735619841815,0.2698,3352.2,3351.3,2.9839]
[1735619842163,0.2698,3352.2,3351.2,7.2526]
[1735619842560,0.2698,3352.2,3351.4,2.98379]
[1735619842711,0.2698,3352.2,3351.5,6.5]
[1735619842870,0.2698,3352.2,3351.5,7.523639]
[1735619843593,0.2698,3352.2,3351.5,1.023639]
[1735619843927,0.2698,3352.2,3351.2,3.73658]
[1735619844290,0.2698,3352.2,3351.3,2.9839]
[1735619844492,0.2698,3352.1,3351.3,2.9839]
[1735619845136,0.2698,3352.1,3351.4,2.98381]
[1735619845607,1.52571771,3352.1,3351.4,2.98381]
[1735619845768,1.52571771,3352.1,3351.5,0.373641]
[1735619846682,0.2698,3352.1,3351.5,0.373641]
[1735619848114,1.52571771,3352.1,3351.5,0.373641]
[1735619849391,1.25591771,3352.0,3351.5,3.357361]
[1735619849591,1.25591771,3352.0,3351.5,0.373641]
[1735619849799,1.25591771,3352.0,3351.6,0.6873641]
[1735619850006,1.25591771,3352.0,3351.7,2.98347]
[1735619851145,1.25591771,3352.0,3351.7,0.7797]
[1735619851350,1.25591771,3352.0,3351.9,2.98338]
[1735619851506,1.25591771,3352.0,3351.9,6.76308]
[1735619851714,1.25591771,3352.0,3351.9,14.60648241]
[1735619851913,1.25591771,3352.1,3352.0,2.98329]
[1735619852419,1.25591771,3352.1,3352.0,6.80709]
[1735619852645,1.25591771,3352.1,3352.0,13.30709]
[1735619852863,1.25591771,3352.6,3352.0,16.1036085]
[1735619853058,1.25591771,3352.6,3352.4,2.98289]
[1735619853776,1.25591771,3352.6,3352.5,2.98284]
[1735619855158,1.25591771,3352.7,3352.5,2.98284]
[1735619855462,1.25591771,3352.7,3352.6,0.298284]
[1735619855660,1.25591771,3352.7,3352.6,3.281034]
[1735619857520,1.25591771,3352.7,3352.6,9.781034]
[1735619857986,1.25591771,3353.3,3352.6,6.798284]
[1735619858290,1.25591771,3353.3,3352.8,2.9825]
[1735619860188,1.25591771,3353.3,3352.9,2.98243]
[1735619860349,1.25591771,3353.3,3353.0,2.98237]
[1735619860694,0.2698,3353.4,3353.0,2.98237]
[1735619860695,1.52571771,3353.4,3353.0,2.98237]
[1735619861558,0.2698,3353.4,3353.0,2.98237]
[1735619861990,0.2698,3353.4,3352.8,2.98256]
[1735619863296,1.52571771,3353.4,3352.8,2.98256]
[1735619867292,0.2698,3353.3,3352.6,2.98275]
[1735619868295,1.52571771,3353.3,3352.6,2.98275]
[1735619869193,1.25591771,3353.2,3352.6,2.98275]
[1735619871615,2.81111416,3353.3,3352.6,2.98275]
[1735619873585,1.52571771,3353.3,3352.9,2.98248]
[1735619873792,1.52571771,3353.3,3353.0,2.98237]
[1735619875048,0.2698,3353.3,3353.0,2.98237]
[1735619877009,0.2698,3353.3,3352.8,9.48255]
[1735619877566,0.2698,3353.3,3352.8,2.98255]
[1735619879313,0.2698,3353.3,3352.8,4.0335935]
[1735619879868,0.2698,3353.3,3352.8,2.98255]
[1735619880937,0.2698,3353.3,3352.9,2.98248]
[1735619883369,0.2698,3353.3,3353.0,2.98237]
[1735619885454,0.2698,3353.6,3353.0,2.98237]
[1735619886937,0.2698,3353.6,3352.9,6.5]
[1735619887740,0.2698,3353.6,3352.8,2.98256]
[1735619890278,0.2698,3353.6,3352.9,2.98247]
[1735619891184,0.2698,3353.5,3352.6,9.48275]
[1735619891537,0.2698,3353.5,3352.6,2.98275]
[1735619891739,0.2698,3353.5,3352.4,6.5]
[1735619892070,0.2698,3353.5,3352.8,2.98257]
[1735619892630,0.2698,3353.5,3352.6,2.98275]
[1735619892864,0.2698,3353.1,3352.6,2.98275]
[1735619894147,1.52571771,3353.1,3352.4,6.5]
[1735619894348,1.52571771,3353.1,3352.5,2.98281]
[1735619895299,1.25591771,3353.0,3352.5,2.98281]
[1735619896309,0.2698,3352.8,3352.3,2.98302]
[1735619896600,0.2698,3352.8,3352.1,2.98317]
[1735619896895,0.2698,3352.8,3352.1,1.32372532]
[1735619897176,0.2698,3352.5,3351.9,6.5]
[1735619897499,0.2698,3352.5,3351.9,9.48336]
[1735619897723,0.2698,3352.5,3351.9,2.98336]
[1735619898253,1.28610884,3352.4,3351.8,6.5]
[1735619898440,1.55590884,3352.4,3351.8,6.5]
[1735619898633,1.25591771,3352.2,3351.8,2.98346]
[1735619898834,1.25591771,3352.2,3351.8,0.948346]
[1735619899134,0.2698,3352.1,3351.6,5.98363]
[1735619902051,1.52571771,3352.1,3351.6,5.98363]
[1735619902903,1.52571771,3352.1,3351.7,2.98348]
[1735619904278,1.25591771,3352.1,3352.0,2.98329]
[1735619904627,1.25591771,3352.3,3351.9,7.3001]
[1735619904837,1.25591771,3352.3,3352.1,2.98313]
[1735619905814,0.2698,3352.4,3352.0,0.73001]
[1735619906110,0.2698,3352.4,3351.9,2.98336]
[1735619907540,0.2698,3352.4,3351.7,2.98355]
[1735619907702,0.2698,3352.4,3351.8,2.98342]
[1735619907904,1.52571771,3352.4,3351.8,2.98342]
[1735619910494,0.2698,3352.4,3351.8,2.98342]
[1735619912221,0.2698,3352.4,3351.6,6.5]
[1735619912515,0.2698,3352.4,3351.9,2.98337]
[1735619913643,0.2698,3352.4,3351.7,2.98354]
[1735619913852,0.2698,3352.4,3351.5,2.98371]
[1735619915155,1.25591771,3352.3,3351.5,2.98371]
[1735619915826,0.2698,3352.2,3351.5,2.98371]
[1735619916147,0.2698,3352.1,3351.2,3.0]
[1735619916310,0.2698,3352.1,3351.4,2.9838]
[1735619917553,1.52571771,3352.1,3351.4,2.9838]
[1735619918554,0.2698,3352.1,3351.4,2.9838]
[1735619919326,0.2698,3352.0,3351.4,2.9838]
[1735619921018,0.2698,3352.0,3351.0,3.0]
[1735619921640,0.2698,3352.0,3351.0,2.98418]
[1735619921861,0.2698,3352.0,3351.1,2.98401]
[1735619922039,0.2698,3352.0,3351.2,2.98398]
[1735619922240,0.2698,3351.9,3351.2,2.98398]
[1735619922965,0.2698,3351.9,3351.3,2.9839]
[1735619925999,0.2698,3351.9,3351.1,2.98409]
[1735619928242,1.28652764,3351.8,3351.1,2.98409]
[1735619928440,1.55632764,3351.8,3351.1,2.98409]
[1735619928644,1.28652764,3351.8,3351.1,2.98409]
[1735619928975,0.2698,3351.7,3351.1,2.98409]
[1735619929186,0.2698,3351.7,3351.1,3.96094]
[1735619929362,0.2698,3351.7,3351.2,2.98394]
[1735619930188,0.2698,3351.7,3351.3,2.9839]
[1735619938793,1.25591771,3351.9,3351.1,0.97685]
[1735619938794,1.25591771,3351.9,3351.2,0.8138]
[1735619938994,1.25591771,3351.9,3351.3,0.30771776]
[1735619939298,1.25591771,3351.9,3351.6,2.98361]
[1735619939996,0.2698,3351.8,3351.4,2.98381]
[1735619940174,0.2698,3351.8,3351.3,6.5]
[1735619940670,0.2698,3351.8,3351.2,2.98398]
[1735619941100,0.2698,3351.8,3351.2,3.461443]
[1735619941253,0.2698,3351.8,3351.3,2.98387]
[1735619942199,1.52571771,3351.8,3351.3,2.98387]
[1735619942811,1.52571771,3351.8,3351.2,0.477463]
[1735619943301,1.25591771,3351.7,3351.2,0.477463]
[1735619943899,1.25591771,3351.7,3351.1,2.98406]
[1735619944490,1.25591771,3351.6,3351.1,2.98406]
[1735619946522,0.2698,3351.5,3351.1,2.98406]
[1735619947103,0.2698,3351.5,3350.7,7.3138]
[1735619947309,0.2698,3351.5,3350.9,2.98425]
[1735619947510,0.2698,3351.5,3350.9,4.014055]
[1735619947871,1.52571771,3351.5,3350.9,4.014055]
[1735619948321,2.81224535,3351.5,3350.9,4.014055]
[1735619948506,2.81224535,3351.5,3350.9,2.98425]
[1735619949325,1.52571771,3351.5,3350.9,2.98425]
[1735619949503,1.52571771,3351.5,3350.7,0.8138]
[1735619949504,1.52571771,3351.5,3351.0,2.98413]
[1735619949711,1.25591771,3351.3,3351.0,2.98413]
[1735619950387,1.25591771,3351.3,3351.1,2.98407]
[1735619950638,1.25591771,3351.3,3351.1,3.932477]
[1735619950834,1.25591771,3351.4,3351.1,3.932477]
[1735619951232,1.25591771,3351.4,3350.9,2.98426]
[1735619952741,1.25591771,3351.3,3350.9,2.98426]
[1735619952921,1.25591771,3351.3,3350.7,3.79824]
[1735619953813,1.25591771,3351.3,3350.8,2.98433]
[1735619954230,1.25591771,3351.2,3350.8,2.98433]
[1735619954443,1.25591771,3351.2,3350.8,4.314143]
[1735619956848,1.25591771,3351.2,3350.8,7.314143]
[1735619957843,1.25591771,3351.2,3350.9,2.98426]
[1735619960158,1.25591771,3351.2,3351.1,2.98409]
[1735619961146,1.25591771,3351.3,3351.1,2.98409]
[1735619962814,1.25591771,3351.3,3350.9,2.98424]
[1735619964589,3.44020421,3351.5,3350.9,2.98424]
[1735619964590,1.25591771,3351.2,3350.9,2.98424]
[1735619965818,1.25591771,3351.2,3350.9,4.4454753]
[1735619966911,1.25591771,3351.2,3351.0,2.98416]
[1735619969921,1.25591771,3351.2,3350.8,6.5]
[1735619970082,1.25591771,3351.2,3350.9,2.98427]
[1735619971525,1.25591771,3351.1,3350.9,2.98427]
[1735619972621,1.25591771,3351.1,3350.7,10.29816]
[1735619976144,1.25591771,3351.1,3350.7,11.92644]
[1735619976539,1.25591771,3351.1,3350.8,2.98435]
[1735619977645,1.25591771,3351.1,3350.8,9.48435]
[1735619977827,1.52571771,3351.1,3350.8,6.5]
[1735619978768,1.25591771,3351.0,3350.6,2.98453]
[1735619978973,1.25591771,3351.0,3350.6,4.312333]
[1735619981325,1.25591771,3351.0,3350.6,1.327803]
[1735619981526,1.25591771,3351.0,3350.8,2.98435]
[1735619982261,1.25591771,3351.0,3350.7,6.5]
[1735619982450,1.25591771,3351.1,3350.9,2.98427]
[1735619983626,1.25591771,3351.2,3350.9,2.98427]
[1735619984863,1.25591771,3351.1,3350.9,3.77497]
[1735619985771,1.25591771,3351.2,3350.9,3.77497]
[1735619985958,1.25591771,3351.2,3350.9,4.9352473]
[1735619986874,1.25591771,3351.1,3350.9,4.9352473]
[1735619990051,1.25591771,3351.2,3350.9,4.9352473]
[1735619990779,1.25591771,3351.2,3350.9,4.1445473]
[1735619990979,1.25591771,3351.2,3350.9,2.98427]